[Event "Titled Tuesday Blitz April 11 Early 2023"]
[White "Bocharov, Dmitry"]
[Black "Movahed, Sina"]
[WhiteFideId "4138716"]
[BlackFideId "42520835"]
[WhiteElo "2469"]
[BlackElo "2225"]
[Result "0-1"]
[Round "03"]
[TimeControl "180+2"]
[Date "2023.04.11"]
[WhiteClock "0:00:46"]
[BlackClock "0:00:40"]

1. d4 {[%clk 0:03:00]}  Nf6 {[%clk 0:02:58]} 2. c4 {[%clk 0:03:00]}  g6 {[%clk 0:02:58]} 3. g3 {[%clk 0:02:59]}  Bg7 {[%clk 0:02:59]} 4. Bg2 {[%clk 0:03:00]}  O-O {[%clk 0:02:59]} 5. Nc3 {[%clk 0:03:00]}  d6 {[%clk 0:03:00]} 6. Nf3 {[%clk 0:03:00]}  Nbd7 {[%clk 0:03:01]} 7. O-O {[%clk 0:02:59]}  e5 {[%clk 0:03:01]} 8. e4 {[%clk 0:03:00]}  exd4 {[%clk 0:02:59]} 9. Nxd4 {[%clk 0:02:59]}  Re8 {[%clk 0:02:58]} 10. h3 {[%clk 0:02:59]}  Nc5 {[%clk 0:02:56]} 11. Re1 {[%clk 0:02:59]}  h6 {[%clk 0:02:55]} 12. Kh2 {[%clk 0:02:48]}  c6 {[%clk 0:02:48]} 13. Bf4 {[%clk 0:02:45]}  a5 {[%clk 0:02:30]} 14. Nb3 {[%clk 0:02:44]}  a4 {[%clk 0:02:13]} 15. Nxc5 {[%clk 0:02:42]}  dxc5 {[%clk 0:02:14]} 16. Qxd8 {[%clk 0:02:27]}  Rxd8 {[%clk 0:02:15]} 17. e5 {[%clk 0:02:27]}  Ne8 {[%clk 0:02:07]} 18. Ne4 {[%clk 0:02:22]}  Bf8 {[%clk 0:02:03]} 19. Rad1 {[%clk 0:02:18]}  Be6 {[%clk 0:02:00]} 20. b3 {[%clk 0:02:17]}  g5 {[%clk 0:01:50]} 21. Be3 {[%clk 0:02:16]}  b6 {[%clk 0:01:48]} 22. f4 {[%clk 0:02:15]}  gxf4 {[%clk 0:01:46]} 23. gxf4 {[%clk 0:02:16]}  Rxd1 {[%clk 0:01:34]} 24. Rxd1 {[%clk 0:02:15]}  axb3 {[%clk 0:01:28]} 25. axb3 {[%clk 0:02:15]}  Be7 {[%clk 0:01:27]} 26. Ng3 {[%clk 0:02:04]}  Ng7 {[%clk 0:01:25]} 27. Bxc6 {[%clk 0:01:58]}  Ra3 {[%clk 0:01:26]} 28. Rb1 {[%clk 0:01:57]}  Bxc4 {[%clk 0:01:16]} 29. bxc4 {[%clk 0:01:56]}  Rxe3 {[%clk 0:01:17]} 30. Bd5 {[%clk 0:01:44]}  Bh4 {[%clk 0:01:12]} 31. Ne4 {[%clk 0:01:40]}  Nh5 {[%clk 0:01:06]} 32. Rxb6 {[%clk 0:01:28]}  Nxf4 {[%clk 0:01:01]} 33. Nf6+ {[%clk 0:00:58]}  Kg7 {[%clk 0:00:51]} 34. Rb7 {[%clk 0:00:49]}  Bg3+ {[%clk 0:00:39]} 35. Kg1 {[%clk 0:00:46]}  Re1# {[%clk 0:00:40]} 0-1


[Site "https://www.chess.com"]

[Event "Titled Tuesday Blitz April 11 Early 2023"]
[White "Javakhadze, Zurab"]
[Black "Zhigalko, Sergei"]
[WhiteFideId "13603647"]
[BlackFideId "13502956"]
[WhiteElo "2381"]
[BlackElo "2626"]
[Result "0-1"]
[Round "03"]
[TimeControl "180+2"]
[Date "2023.04.11"]
[WhiteClock "0:00:14"]
[BlackClock "0:00:08"]

1. Nf3 {[%clk 0:02:59]}  d5 {[%clk 0:02:58]} 2. g3 {[%clk 0:03:00]}  c6 {[%clk 0:02:59]} 3. Bg2 {[%clk 0:03:00]}  Bg4 {[%clk 0:02:59]} 4. O-O {[%clk 0:03:01]}  Nd7 {[%clk 0:02:59]} 5. d3 {[%clk 0:03:02]}  e6 {[%clk 0:03:00]} 6. Nbd2 {[%clk 0:03:02]}  Bd6 {[%clk 0:03:00]} 7. e4 {[%clk 0:03:01]}  Ne7 {[%clk 0:03:01]} 8. h3 {[%clk 0:03:01]}  Bh5 {[%clk 0:03:01]} 9. Qe1 {[%clk 0:03:00]}  O-O {[%clk 0:03:01]} 10. b3 {[%clk 0:02:46]}  a5 {[%clk 0:03:01]} 11. a3 {[%clk 0:02:46]}  Re8 {[%clk 0:02:59]} 12. Bb2 {[%clk 0:02:45]}  c5 {[%clk 0:03:00]} 13. Nh4 {[%clk 0:02:18]}  Nc6 {[%clk 0:02:36]} 14. f4 {[%clk 0:02:06]}  Nd4 {[%clk 0:02:36]} 15. Bxd4 {[%clk 0:01:49]}  cxd4 {[%clk 0:02:36]} 16. g4 {[%clk 0:01:43]}  Bg6 {[%clk 0:02:35]} 17. exd5 {[%clk 0:01:23]}  exd5 {[%clk 0:02:17]} 18. Qf2 {[%clk 0:01:23]}  Re3 {[%clk 0:02:18]} 19. Rae1 {[%clk 0:01:05]}  Rc8 {[%clk 0:01:52]} 20. Ndf3 {[%clk 0:00:25]}  Bxf4 {[%clk 0:00:57]} 21. Nxd4 {[%clk 0:00:25]}  Rxe1 {[%clk 0:00:55]} 22. Rxe1 {[%clk 0:00:24]}  Bd6 {[%clk 0:00:08]} 23. Nxg6 {[%clk 0:00:24]}  hxg6 {[%clk 0:00:09]} 24. Bxd5 {[%clk 0:00:21]}  Nf6 {[%clk 0:00:09]} 25. Bxb7 {[%clk 0:00:19]}  Bc5 {[%clk 0:00:08]} 26. c3 {[%clk 0:00:19]}  Rb8 {[%clk 0:00:08]} 27. Bg2 {[%clk 0:00:16]}  Rxb3 {[%clk 0:00:08]} 28. Qc2 {[%clk 0:00:14]}  Rxc3 {[%clk 0:00:08]} 0-1


[Site "https://www.chess.com"]

[Event "Titled Tuesday Blitz April 11 Early 2023"]
[White "Nazari, Arad"]
[Black "Samadov, Read"]
[WhiteFideId "12577324"]
[BlackFideId "13417444"]
[WhiteElo "2242"]
[BlackElo "2355"]
[Result "1-0"]
[Round "03"]
[TimeControl "180+2"]
[Date "2023.04.11"]
[WhiteClock "0:00:29"]
[BlackClock "0:00:15"]

1. e4 {[%clk 0:03:00]}  c5 {[%clk 0:02:54]} 2. Nf3 {[%clk 0:03:00]}  d6 {[%clk 0:02:54]} 3. Bb5+ {[%clk 0:03:00]}  Nd7 {[%clk 0:02:54]} 4. d4 {[%clk 0:03:00]}  Nf6 {[%clk 0:02:52]} 5. e5 {[%clk 0:02:56]}  cxd4 {[%clk 0:02:43]} 6. Qxd4 {[%clk 0:02:50]}  dxe5 {[%clk 0:02:42]} 7. Nxe5 {[%clk 0:02:50]}  a6 {[%clk 0:02:42]} 8. Bxd7+ {[%clk 0:02:30]}  Nxd7 {[%clk 0:02:42]} 9. O-O {[%clk 0:02:22]}  Qb6 {[%clk 0:02:38]} 10. Qxb6 {[%clk 0:02:17]}  Nxb6 {[%clk 0:02:38]} 11. Nc3 {[%clk 0:02:17]}  f6 {[%clk 0:02:36]} 12. Be3 {[%clk 0:02:16]}  Nd7 {[%clk 0:02:22]} 13. Nd5 {[%clk 0:02:15]}  Nxe5 {[%clk 0:01:56]} 14. Nc7+ {[%clk 0:02:15]}  Kd7 {[%clk 0:01:56]} 15. Nxa8 {[%clk 0:02:15]}  Kc6 {[%clk 0:01:57]} 16. Nb6 {[%clk 0:02:12]}  Bf5 {[%clk 0:01:57]} 17. Rfd1 {[%clk 0:02:04]}  g5 {[%clk 0:01:41]} 18. Rd8 {[%clk 0:01:56]}  Bg7 {[%clk 0:01:40]} 19. Rxh8 {[%clk 0:01:56]}  Bxh8 {[%clk 0:01:40]} 20. c4 {[%clk 0:01:37]}  Be6 {[%clk 0:01:36]} 21. b3 {[%clk 0:01:35]}  f5 {[%clk 0:01:34]} 22. Rd1 {[%clk 0:01:32]}  Ng4 {[%clk 0:01:30]} 23. Nd5 {[%clk 0:01:29]}  Nxe3 {[%clk 0:01:21]} 24. Nxe7+ {[%clk 0:01:28]}  Kc5 {[%clk 0:01:18]} 25. fxe3 {[%clk 0:01:29]}  b5 {[%clk 0:01:18]} 26. Nxf5 {[%clk 0:01:24]}  bxc4 {[%clk 0:01:16]} 27. Nd4 {[%clk 0:01:22]}  Bd5 {[%clk 0:01:13]} 28. bxc4 {[%clk 0:01:21]}  Bxc4 {[%clk 0:01:12]} 29. Rd2 {[%clk 0:01:21]}  Kb4 {[%clk 0:01:10]} 30. Rc2 {[%clk 0:01:13]}  Bf6 {[%clk 0:01:02]} 31. Nc6+ {[%clk 0:01:08]}  Kb5 {[%clk 0:01:00]} 32. Nd4+ {[%clk 0:01:09]}  Kb4 {[%clk 0:01:00]} 33. Kf2 {[%clk 0:00:55]}  g4 {[%clk 0:00:56]} 34. Kg3 {[%clk 0:00:47]}  h5 {[%clk 0:00:55]} 35. Kf4 {[%clk 0:00:48]}  Bd5 {[%clk 0:00:28]} 36. Rb2+ {[%clk 0:00:46]}  Kc5 {[%clk 0:00:24]} 37. g3 {[%clk 0:00:40]}  a5 {[%clk 0:00:21]} 38. Rb5+ {[%clk 0:00:37]}  Kd6 {[%clk 0:00:19]} 39. Rxa5 {[%clk 0:00:35]}  Bd8 {[%clk 0:00:16]} 40. Nf5+ {[%clk 0:00:30]}  Ke6 {[%clk 0:00:16]} 41. Ng7+ {[%clk 0:00:28]}  Kd6 {[%clk 0:00:15]} 42. Rxd5+ {[%clk 0:00:28]}  Kxd5 {[%clk 0:00:15]} 43. Nxh5 {[%clk 0:00:29]} 1-0


[Site "https://www.chess.com"]

[Event "Titled Tuesday Blitz April 11 Early 2023"]
[White "Dronavalli, Harika"]
[Black "Eljanov, Pavel"]
[WhiteFideId "5015197"]
[BlackFideId "14102951"]
[WhiteElo "2432"]
[BlackElo "2598"]
[Result "1/2-1/2"]
[Round "03"]
[TimeControl "180+2"]
[Date "2023.04.11"]
[WhiteClock "0:00:21"]
[BlackClock "0:00:07"]

1. e4 {[%clk 0:03:00]}  c6 {[%clk 0:02:59]} 2. Nf3 {[%clk 0:03:00]}  d5 {[%clk 0:03:00]} 3. exd5 {[%clk 0:03:01]}  cxd5 {[%clk 0:03:00]} 4. Ne5 {[%clk 0:03:01]}  Nc6 {[%clk 0:02:54]} 5. Bb5 {[%clk 0:02:59]}  Bd7 {[%clk 0:02:49]} 6. Nxd7 {[%clk 0:02:59]}  Qxd7 {[%clk 0:02:49]} 7. O-O {[%clk 0:02:55]}  a6 {[%clk 0:02:45]} 8. Be2 {[%clk 0:02:54]}  Nd4 {[%clk 0:02:43]} 9. Bd3 {[%clk 0:02:54]}  g6 {[%clk 0:02:36]} 10. Re1 {[%clk 0:02:51]}  Bg7 {[%clk 0:02:35]} 11. c3 {[%clk 0:02:52]}  Nc6 {[%clk 0:02:34]} 12. Bf1 {[%clk 0:02:52]}  d4 {[%clk 0:02:34]} 13. Na3 {[%clk 0:02:52]}  Nf6 {[%clk 0:02:30]} 14. Nc4 {[%clk 0:02:52]}  Nd5 {[%clk 0:02:31]} 15. a4 {[%clk 0:02:43]}  O-O {[%clk 0:02:28]} 16. a5 {[%clk 0:02:44]}  Rad8 {[%clk 0:02:24]} 17. Qb3 {[%clk 0:02:37]}  h5 {[%clk 0:01:56]} 18. h3 {[%clk 0:02:32]}  h4 {[%clk 0:01:53]} 19. Be2 {[%clk 0:02:27]}  Nf4 {[%clk 0:01:51]} 20. Bf1 {[%clk 0:02:12]}  d3 {[%clk 0:01:51]} 21. Ra4 {[%clk 0:02:05]}  e5 {[%clk 0:01:47]} 22. Nb6 {[%clk 0:02:00]}  Qf5 {[%clk 0:01:46]} 23. Nc4 {[%clk 0:01:42]}  Rd7 {[%clk 0:01:39]} 24. Ne3 {[%clk 0:01:39]}  Qg5 {[%clk 0:01:39]} 25. Kh1 {[%clk 0:01:39]}  Kh8 {[%clk 0:01:31]} 26. Qc4 {[%clk 0:01:27]}  f5 {[%clk 0:01:28]} 27. b3 {[%clk 0:01:22]}  e4 {[%clk 0:01:28]} 28. Ba3 {[%clk 0:01:21]}  Ne5 {[%clk 0:01:27]} 29. Qc5 {[%clk 0:01:10]}  Re8 {[%clk 0:01:25]} 30. Rd4 {[%clk 0:01:09]}  Rxd4 {[%clk 0:01:18]} 31. cxd4 {[%clk 0:01:09]}  Nc6 {[%clk 0:01:13]} 32. d5 {[%clk 0:01:03]}  Ne5 {[%clk 0:00:59]} 33. Bb2 {[%clk 0:01:01]}  Nf7 {[%clk 0:00:45]} 34. Bxg7+ {[%clk 0:01:00]}  Kxg7 {[%clk 0:00:46]} 35. d6 {[%clk 0:01:00]}  Rd8 {[%clk 0:00:42]} 36. Qc7 {[%clk 0:00:43]}  Rxd6 {[%clk 0:00:42]} 37. Qxb7 {[%clk 0:00:43]}  Qd8 {[%clk 0:00:30]} 38. b4 {[%clk 0:00:40]}  Re6 {[%clk 0:00:24]} 39. Rc1 {[%clk 0:00:39]}  Re7 {[%clk 0:00:22]} 40. Qxa6 {[%clk 0:00:36]}  Ne6 {[%clk 0:00:18]} 41. Qc8 {[%clk 0:00:36]}  Qd6 {[%clk 0:00:16]} 42. Rc6 {[%clk 0:00:31]}  Qe5 {[%clk 0:00:16]} 43. Nc4 {[%clk 0:00:29]}  Qa1 {[%clk 0:00:17]} 44. Rxe6 {[%clk 0:00:26]}  Qxf1+ {[%clk 0:00:16]} 45. Kh2 {[%clk 0:00:27]}  Rxe6 {[%clk 0:00:16]} 46. Qxe6 {[%clk 0:00:27]}  Qxf2 {[%clk 0:00:17]} 47. a6 {[%clk 0:00:20]}  Qg3+ {[%clk 0:00:16]} 48. Kh1 {[%clk 0:00:21]}  Qe1+ {[%clk 0:00:15]} 49. Kh2 {[%clk 0:00:21]}  f4 {[%clk 0:00:16]} 50. Ne5 {[%clk 0:00:19]}  Qg3+ {[%clk 0:00:14]} 51. Kh1 {[%clk 0:00:20]}  Qe1+ {[%clk 0:00:09]} 52. Kh2 {[%clk 0:00:20]}  Qg3+ {[%clk 0:00:08]} 53. Kh1 {[%clk 0:00:20]}  Nxe5 {[%clk 0:00:08]} 54. Qxe5+ {[%clk 0:00:20]}  Kh6 {[%clk 0:00:05]} 55. Qh8+ {[%clk 0:00:21]}  Kg5 {[%clk 0:00:05]} 56. Qd8+ {[%clk 0:00:21]}  Kh6 {[%clk 0:00:06]} 57. Qh8+ {[%clk 0:00:21]}  Kg5 {[%clk 0:00:06]} 58. Qe5+ {[%clk 0:00:21]}  Kh6 {[%clk 0:00:07]} 59. Qh8+ {[%clk 0:00:21]} 1/2-1/2


[Site "https://www.chess.com"]

[Event "Titled Tuesday Blitz April 11 Early 2023"]
[White "Karthikeyan, Murali"]
[Black "Anton Guijarro, David"]
[WhiteFideId "5074452"]
[BlackFideId "2285525"]
[WhiteElo "2523"]
[BlackElo "2618"]
[Result "0-1"]
[Round "03"]
[TimeControl "180+2"]
[Date "2023.04.11"]
[WhiteClock "0:00:02"]
[BlackClock "0:00:04"]

1. e4 {[%clk 0:03:00]}  e5 {[%clk 0:02:59]} 2. Nf3 {[%clk 0:02:59]}  Nc6 {[%clk 0:02:59]} 3. Nc3 {[%clk 0:02:59]}  Nf6 {[%clk 0:02:58]} 4. g3 {[%clk 0:02:59]}  Bc5 {[%clk 0:02:57]} 5. Bg2 {[%clk 0:03:00]}  d6 {[%clk 0:02:57]} 6. O-O {[%clk 0:03:00]}  a5 {[%clk 0:02:57]} 7. d3 {[%clk 0:02:58]}  O-O {[%clk 0:02:54]} 8. Be3 {[%clk 0:02:56]}  Bxe3 {[%clk 0:02:51]} 9. fxe3 {[%clk 0:02:57]}  Be6 {[%clk 0:02:44]} 10. Nh4 {[%clk 0:02:50]}  g6 {[%clk 0:02:35]} 11. Qe2 {[%clk 0:02:43]}  Ne8 {[%clk 0:02:22]} 12. Rf2 {[%clk 0:02:37]}  f6 {[%clk 0:02:20]} 13. Raf1 {[%clk 0:02:34]}  Ne7 {[%clk 0:02:20]} 14. Nd5 {[%clk 0:02:30]}  Nxd5 {[%clk 0:02:18]} 15. exd5 {[%clk 0:02:31]}  Bd7 {[%clk 0:02:18]} 16. e4 {[%clk 0:02:19]}  c6 {[%clk 0:02:11]} 17. dxc6 {[%clk 0:02:13]}  bxc6 {[%clk 0:02:12]} 18. Bf3 {[%clk 0:02:10]}  Qc8 {[%clk 0:01:57]} 19. Ng2 {[%clk 0:02:07]}  a4 {[%clk 0:01:51]} 20. Ne3 {[%clk 0:02:04]}  Be6 {[%clk 0:01:51]} 21. b3 {[%clk 0:01:55]}  axb3 {[%clk 0:01:47]} 22. axb3 {[%clk 0:01:56]}  Ra7 {[%clk 0:01:44]} 23. Bg4 {[%clk 0:01:45]}  Raf7 {[%clk 0:01:40]} 24. Bxe6 {[%clk 0:01:41]}  Qxe6 {[%clk 0:01:41]} 25. Qd2 {[%clk 0:01:16]}  d5 {[%clk 0:01:30]} 26. exd5 {[%clk 0:01:13]}  cxd5 {[%clk 0:01:31]} 27. d4 {[%clk 0:01:13]}  e4 {[%clk 0:01:23]} 28. Ra1 {[%clk 0:00:53]}  f5 {[%clk 0:01:18]} 29. c4 {[%clk 0:00:47]}  Nc7 {[%clk 0:01:11]} 30. Ra5 {[%clk 0:00:46]}  Qb6 {[%clk 0:01:00]} 31. Qc3 {[%clk 0:00:30]}  f4 {[%clk 0:00:48]} 32. gxf4 {[%clk 0:00:29]}  Rxf4 {[%clk 0:00:48]} 33. Rxf4 {[%clk 0:00:28]}  Rxf4 {[%clk 0:00:48]} 34. cxd5 {[%clk 0:00:22]}  Rf3 {[%clk 0:00:29]} 35. Rc5 {[%clk 0:00:12]}  Qf6 {[%clk 0:00:13]} 36. Rxc7 {[%clk 0:00:07]}  Qg5+ {[%clk 0:00:13]} 37. Kh1 {[%clk 0:00:07]}  Rxe3 {[%clk 0:00:13]} 38. Qb4 {[%clk 0:00:06]}  Rf3 {[%clk 0:00:06]} 39. Rc8+ {[%clk 0:00:04]}  Kg7 {[%clk 0:00:05]} 40. Qe1 {[%clk 0:00:03]}  e3 {[%clk 0:00:04]} 41. Rc7+ {[%clk 0:00:03]}  Kh6 {[%clk 0:00:04]} 42. Rc2 {[%clk 0:00:02]}  Qf4 {[%clk 0:00:04]} 43. Kg2 {[%clk 0:00:02]}  Qe4 {[%clk 0:00:04]} 0-1


[Site "https://www.chess.com"]

[Event "Titled Tuesday Blitz April 11 Early 2023"]
[White "Iliaguev, Nisim"]
[Black "Drygalov, Andrey"]
[WhiteFideId "2817276"]
[BlackFideId "24171735"]
[WhiteElo "2241"]
[BlackElo "2466"]
[Result "1/2-1/2"]
[Round "03"]
[TimeControl "180+2"]
[Date "2023.04.11"]
[WhiteClock "0:00:28"]
[BlackClock "0:00:14"]

1. d4 {[%clk 0:03:00]}  Nf6 {[%clk 0:02:59]} 2. Nf3 {[%clk 0:02:59]}  d5 {[%clk 0:03:00]} 3. g3 {[%clk 0:02:59]}  g6 {[%clk 0:03:00]} 4. Bg2 {[%clk 0:03:00]}  Bg7 {[%clk 0:03:00]} 5. O-O {[%clk 0:03:00]}  O-O {[%clk 0:03:01]} 6. c4 {[%clk 0:03:01]}  c6 {[%clk 0:03:02]} 7. cxd5 {[%clk 0:03:01]}  cxd5 {[%clk 0:03:02]} 8. Nc3 {[%clk 0:03:01]}  e6 {[%clk 0:03:03]} 9. Ne5 {[%clk 0:03:02]}  Nfd7 {[%clk 0:03:03]} 10. Nxd7 {[%clk 0:02:59]}  Qxd7 {[%clk 0:03:03]} 11. h4 {[%clk 0:02:57]}  Nc6 {[%clk 0:03:01]} 12. e3 {[%clk 0:02:57]}  b6 {[%clk 0:03:01]} 13. b3 {[%clk 0:02:56]}  Ba6 {[%clk 0:03:00]} 14. Re1 {[%clk 0:02:57]}  Rfc8 {[%clk 0:03:00]} 15. Bb2 {[%clk 0:02:56]}  Rc7 {[%clk 0:02:58]} 16. Qd2 {[%clk 0:02:56]}  Rac8 {[%clk 0:02:57]} 17. Bf1 {[%clk 0:02:52]}  Bxf1 {[%clk 0:02:51]} 18. Rxf1 {[%clk 0:02:53]}  Ne7 {[%clk 0:02:43]} 19. Rac1 {[%clk 0:02:51]}  Nf5 {[%clk 0:02:43]} 20. Na4 {[%clk 0:02:48]}  Nd6 {[%clk 0:02:42]} 21. Rxc7 {[%clk 0:02:44]}  Rxc7 {[%clk 0:02:41]} 22. Rc1 {[%clk 0:02:44]}  Ne4 {[%clk 0:02:41]} 23. Rxc7 {[%clk 0:02:42]}  Qxc7 {[%clk 0:02:41]} 24. Qc1 {[%clk 0:02:42]}  Qxc1+ {[%clk 0:02:33]} 25. Bxc1 {[%clk 0:02:42]}  Bf8 {[%clk 0:02:33]} 26. Kf1 {[%clk 0:02:19]}  h5 {[%clk 0:02:15]} 27. Nb2 {[%clk 0:02:07]}  f6 {[%clk 0:01:51]} 28. Nd3 {[%clk 0:02:04]}  g5 {[%clk 0:01:51]} 29. a4 {[%clk 0:01:42]}  Bd6 {[%clk 0:01:35]} 30. Ke2 {[%clk 0:01:38]}  Kf7 {[%clk 0:01:35]} 31. Bd2 {[%clk 0:01:30]}  a5 {[%clk 0:01:06]} 32. Be1 {[%clk 0:01:29]}  Kg6 {[%clk 0:01:04]} 33. Kf3 {[%clk 0:01:18]}  g4+ {[%clk 0:00:48]} 34. Ke2 {[%clk 0:01:15]}  Kf5 {[%clk 0:00:46]} 35. Kd1 {[%clk 0:01:00]}  e5 {[%clk 0:00:46]} 36. Ke2 {[%clk 0:00:31]}  Bc7 {[%clk 0:00:45]} 37. Kd1 {[%clk 0:00:30]}  Nd6 {[%clk 0:00:38]} 38. dxe5 {[%clk 0:00:28]}  fxe5 {[%clk 0:00:38]} 39. Bc3 {[%clk 0:00:29]}  Ne4 {[%clk 0:00:34]} 40. Bb2 {[%clk 0:00:28]}  Bd6 {[%clk 0:00:34]} 41. Ke2 {[%clk 0:00:28]}  Nc5 {[%clk 0:00:21]} 42. Nxc5 {[%clk 0:00:28]}  Bxc5 {[%clk 0:00:22]} 43. Kd3 {[%clk 0:00:29]}  Bb4 {[%clk 0:00:21]} 44. Ba1 {[%clk 0:00:27]}  Be1 {[%clk 0:00:21]} 45. Ke2 {[%clk 0:00:28]}  Bb4 {[%clk 0:00:22]} 46. Kd3 {[%clk 0:00:28]}  Bc5 {[%clk 0:00:22]} 47. Bb2 {[%clk 0:00:29]}  Be7 {[%clk 0:00:20]} 48. Ba1 {[%clk 0:00:28]}  Ba3 {[%clk 0:00:20]} 49. Bc3 {[%clk 0:00:28]}  Bc5 {[%clk 0:00:14]} 50. Bb2 {[%clk 0:00:28]} 1/2-1/2


[Site "https://www.chess.com"]

[Event "Titled Tuesday Blitz April 11 Early 2023"]
[White "Iskusnyh, Sergei"]
[Black "Ibarra Jerez, Jose Carlos"]
[WhiteFideId "4120027"]
[BlackFideId "2226332"]
[WhiteElo "2492"]
[BlackElo "2638"]
[Result "0-1"]
[Round "03"]
[TimeControl "180+2"]
[Date "2023.04.11"]
[WhiteClock "0:00:05"]
[BlackClock "0:01:06"]

1. d4 {[%clk 0:03:00]}  Nf6 {[%clk 0:02:58]} 2. c4 {[%clk 0:03:01]}  d6 {[%clk 0:02:58]} 3. Nf3 {[%clk 0:03:00]}  g6 {[%clk 0:02:58]} 4. g3 {[%clk 0:03:00]}  Bf5 {[%clk 0:02:58]} 5. Nc3 {[%clk 0:02:59]}  Ne4 {[%clk 0:02:58]} 6. Nxe4 {[%clk 0:02:51]}  Bxe4 {[%clk 0:02:58]} 7. Bh3 {[%clk 0:02:51]}  Bxf3 {[%clk 0:02:57]} 8. exf3 {[%clk 0:02:51]}  d5 {[%clk 0:02:58]} 9. O-O {[%clk 0:02:24]}  Nc6 {[%clk 0:02:54]} 10. Be3 {[%clk 0:02:13]}  Bg7 {[%clk 0:02:52]} 11. Qb3 {[%clk 0:02:09]}  O-O {[%clk 0:02:46]} 12. Rfd1 {[%clk 0:01:42]}  Na5 {[%clk 0:02:44]} 13. Qc3 {[%clk 0:01:32]}  Nxc4 {[%clk 0:02:44]} 14. b3 {[%clk 0:01:12]}  Nd6 {[%clk 0:02:42]} 15. Rac1 {[%clk 0:01:09]}  c6 {[%clk 0:02:36]} 16. Qb4 {[%clk 0:01:07]}  Qb6 {[%clk 0:02:33]} 17. Qa4 {[%clk 0:00:54]}  e6 {[%clk 0:02:21]} 18. Bf1 {[%clk 0:00:51]}  Nf5 {[%clk 0:02:20]} 19. Kg2 {[%clk 0:00:39]}  Rfe8 {[%clk 0:02:11]} 20. Rc5 {[%clk 0:00:31]}  e5 {[%clk 0:02:05]} 21. b4 {[%clk 0:00:20]}  Nxe3+ {[%clk 0:01:37]} 22. fxe3 {[%clk 0:00:19]}  exd4 {[%clk 0:01:32]} 23. exd4 {[%clk 0:00:19]}  Bf8 {[%clk 0:01:32]} 24. Rc3 {[%clk 0:00:17]}  Bg7 {[%clk 0:01:28]} 25. Rcd3 {[%clk 0:00:16]}  Re6 {[%clk 0:01:27]} 26. a3 {[%clk 0:00:13]}  Rae8 {[%clk 0:01:28]} 27. Qc2 {[%clk 0:00:13]}  Re3 {[%clk 0:01:27]} 28. R3d2 {[%clk 0:00:11]}  Rxa3 {[%clk 0:01:26]} 29. Re2 {[%clk 0:00:10]}  Rxe2+ {[%clk 0:01:20]} 30. Qxe2 {[%clk 0:00:10]}  Bxd4 {[%clk 0:01:20]} 31. Qe8+ {[%clk 0:00:09]}  Kg7 {[%clk 0:01:20]} 32. Rd2 {[%clk 0:00:09]}  Re3 {[%clk 0:01:15]} 33. Qc8 {[%clk 0:00:08]}  Qxb4 {[%clk 0:01:13]} 34. Re2 {[%clk 0:00:06]}  Rxe2+ {[%clk 0:01:13]} 35. Bxe2 {[%clk 0:00:07]}  Qd2 {[%clk 0:01:09]} 36. Qe8 {[%clk 0:00:05]}  Qe3 {[%clk 0:01:06]} 0-1


[Site "https://www.chess.com"]